[Event "47th GRE-chT 2019"]
[Site "Patra"]
[Date "2019.07.02"]
[Round "1.23"]
[White "Sandalakis, Angelos"]
[Black "Sigalas, Frangiskos"]
[Result "1-0"]
[ECO "E17"]
[WhiteElo "2429"]
[BlackElo "2228"]
[Annotator "NA"]
[PlyCount "82"]
[EventDate "2019.07.02"]
[EventCountry "GRE"]
[SourceTitle "playchess.com"]
[Source "ChessBase"]
[SourceQuality "1"]
[TimeControl "5400+30"]

1. Nf3 {[%emt 0:00:00]} Nf6 {[%emt 0:00:00]} 2. c4 {[%emt 0:00:00]} e6 {[%emt 0:00:00]} 3. g3 {[%emt 0:00:00]} b6 {[%emt 0:00:18]} 4. Bg2 {[%emt 0:00:06]} Bb7 {[%emt 0:00:07]} 5. O-O {[%emt 0:00:11]} Be7 {[%emt 0:00:18]} 6. Nc3 {[%emt 0:00:14]} O-O {[%emt 0:00:11]} 7. Re1 {[%emt 0:01:32]} d5 {[%emt 0:01:07]} 8. cxd5 {[%emt 0:02:56]} exd5 {[%emt 0:00:30]} 9. d4 {[%emt 0:00:08]} Nbd7 {[%emt 0:02:00]} 10. Bf4 {[%emt 0:01:41]} c5 {[%emt 0:02:05]} 11. Ne5 {[%emt 0:14:28]} Nxe5 {[%emt 0:31:27]} 12. Bxe5 {[%emt 0:02:32]} Rc8 {[%emt 0:07:39]} 13. dxc5 {[%emt 0:19:39]} Bxc5 {[%emt 0:14:01]} 14. e3 {[%emt 0:01:43]} Re8 {[%emt 0:11:47]} 15. Bd4 {[%emt 0:00:36]} Ne4 {[%emt 0:01:06]} 16. Bxe4 {[%emt 0:10:11]} dxe4 {[%emt 0:01:08]} 17. Bxc5 {[%emt 0:00:03]} Rxc5 {[%emt 0:00:58]} 18. Qxd8 {[%emt 0:00:07]} Rxd8 {[%emt 0:00:05]} 19. Red1 {[%emt 0:00:09]} Rcc8 {[%emt 0:12:55]} 20. Nb5 {[%emt 0:03:10]} g6 {[%emt 0:05:03]} 21. Nd6 {[%emt 0:07:36]} Rc7 {[%emt 0:00:17]} 22. Rd4 {[%emt 0:00:08]} Rcd7 {[%emt 0:00:39]} 23. Nxb7 {[%emt 0:04:22]} Rxd4 {[%emt 0:00:06]} 24. exd4 {[%emt 0:00:02]} Rxd4 {[%emt 0:00:22]} 25. Rc1 {[%emt 0:00:34]} Kf8 {[%emt 0:03:09]} 26. Rc8+ {[%emt 0:06:42]} Ke7 {[%emt 0:00:23]} 27. Ra8 {[%emt 0:00:04]} Rd1+ {[%emt 0:04:50]} 28. Kg2 {[%emt 0:00:05]} Rd2 {[%emt 0:00:05]} 29. Kf1 {[%emt 0:04:37]} a5 {[%emt 0:00:48]} 30. Ra7 {[%emt 0:01:51]} Rd7 {[%emt 0:01:01]} 31. Nxa5 {[%emt 0:00:47]} bxa5 {[%emt 0:00:18]} 32. Rxa5 {[%emt 0:02:12]} Rd2 {[%emt 0:00:42]} 33. Rb5 {[%emt 0:00:32]} Kd6 {[%emt 0:00:09]} 34. a4 {[%emt 0:01:35]} Kc6 {[%emt 0:00:37]} 35. Rb4 {[%emt 0:02:41]} f5 {[%emt 0:00:30]} 36. a5 {[%emt 0:00:12]} Kc5 {[%emt 0:00:42]} 37. Rb7 {[%emt 0:00:42]} e3 {[%emt 0:00:31]} 38. fxe3 {[%emt 0:00:52]} Rxh2 {[%emt 0:00:30]} 39. a6 {[%emt 0:00:45]} Kc6 {[%emt 0:00:21]} 40. b4 {[%emt 0:00:00]} Ra2 {[%emt 0:00:00]} 41. b5+ {[%emt 0:00:00]} Kd5 {[%emt 0:00:00]} 1-0

[Event "47th GRE-chT 2019"]
[Site "Patra"]
[Date "2019.07.02"]
[Round "1.24"]
[White "Tzouganakis, Panteleimon"]
[Black "Kanakaris, Georgios"]
[Result "0-1"]
[ECO "B51"]
[WhiteElo "2197"]
[BlackElo "2413"]
[Annotator "NA"]
[PlyCount "70"]
[EventDate "2019.07.02"]
[EventCountry "GRE"]
[SourceTitle "playchess.com"]
[Source "ChessBase"]
[SourceQuality "1"]
[TimeControl "5400+30"]

1. e4 {[%emt 0:00:00]} c5 {[%emt 0:00:00]} 2. Nf3 {[%emt 0:00:01]} d6 {[%emt 0:00:20]} 3. Bb5+ {[%emt 0:01:55]} Nd7 {[%emt 0:00:15]} 4. d4 {[%emt 0:01:13]} cxd4 {[%emt 0:00:08]} 5. Qxd4 {[%emt 0:01:10]} a6 {[%emt 0:00:08]} 6. Bxd7+ {[%emt 0:00:09]} Bxd7 {[%emt 0:02:00]} 7. Nc3 {[%emt 0:04:40]} e5 {[%emt 0:02:06]} 8. Qd3 {[%emt 0:00:13]} h6 {[%emt 0:10:40]} 9. a4 {[%emt 0:02:34]} Nf6 {[%emt 0:01:34]} 10. O-O {[%emt 0:04:49]} Be7 {[%emt 0:12:01]} 11. Be3 {[%emt 0:02:54]} Qc7 {[%emt 0:06:28]} 12. Rfd1 {[%emt 0:20:00]} Bg4 {[%emt 0:07:47]} 13. a5 {[%emt 0:02:09]} Rc8 {[%emt 0:01:18]} 14. Bb6 {[%emt 0:07:25]} Qc6 {[%emt 0:19:48]} 15. Rd2 {[%emt 0:07:27]} O-O {[%emt 0:04:29]} 16. Rad1 {[%emt 0:15:34]} Qc4 {[%emt 0:11:12]} 17. Re2 {[%emt 0:10:08]} Rfe8 {[%emt 0:06:45]} 18. h3 {[%emt 0:00:07]} Be6 {[%emt 0:04:30]} 19. Qxc4 {[%emt 0:00:08]} Bxc4 {[%emt 0:01:05]} 20. Red2 {[%emt 0:04:31]} Be6 {[%emt 0:04:00]} 21. Ne1 {[%emt 0:01:42]} Rxc3 {[%emt 0:00:01]} 22. bxc3 {[%emt 0:00:07]} Nxe4 {[%emt 0:00:01]} 23. Rd3 {[%emt 0:00:12]} Rc8 {[%emt 0:03:11]} 24. c4 {[%emt 0:01:00]} Rxc4 {[%emt 0:01:21]} 25. Be3 {[%emt 0:01:15]} Nc3 {[%emt 0:00:18]} 26. Ra1 {[%emt 0:02:19]} Bf5 {[%emt 0:00:05]} 27. Rd2 {[%emt 0:02:07]} d5 {[%emt 0:00:49]} 28. Nd3 {[%emt 0:01:36]} d4 {[%emt 0:00:03]} 29. Nxe5 {[%emt 0:00:06]} dxe3 {[%emt 0:00:36]} 30. fxe3 {[%emt 0:01:17]} Re4 {[%emt 0:01:22]} 31. Nd3 {[%emt 0:01:00]} Rxe3 {[%emt 0:00:11]} 32. Rf1 {[%emt 0:01:29]} Be6 {[%emt 0:00:15]} 33. Kf2 {[%emt 0:00:25]} Re4 {[%emt 0:01:08]} 34. Re1 {[%emt 0:00:28]} Rxe1 {[%emt 0:00:03]} 35. Kxe1 {[%emt 0:00:05]} Bg5 {[%emt 3:29:55]} 0-1

[Event "47th GRE-chT 2019"]
[Site "Patra"]
[Date "2019.07.02"]
[Round "1.25"]
[White "Tsolakidou, Stavroula"]
[Black "Bulmaga, Irina"]
[Result "1/2-1/2"]
[ECO "E01"]
[WhiteElo "2426"]
[BlackElo "2435"]
[Annotator "NA"]
[PlyCount "63"]
[EventDate "2019.07.02"]
[EventCountry "GRE"]
[SourceTitle "playchess.com"]
[Source "ChessBase"]
[SourceQuality "1"]
[TimeControl "5400+30"]

1. d4 {[%emt 0:00:00]} Nf6 {[%emt 0:00:00]} 2. c4 {[%emt 0:00:00]} e6 {[%emt 0:00:00]} 3. g3 {[%emt 0:00:00]} c5 {[%emt 0:00:51]} 4. Nf3 {[%emt 0:03:39]} cxd4 {[%emt 0:00:34]} 5. Nxd4 {[%emt 0:00:05]} d5 {[%emt 0:00:06]} 6. Bg2 {[%emt 0:00:06]} e5 {[%emt 0:00:35]} 7. Nb3 {[%emt 0:00:09]} d4 {[%emt 0:02:14]} 8. O-O {[%emt 0:00:13]} Nc6 {[%emt 0:03:40]} 9. Bg5 {[%emt 0:00:52]} Be7 {[%emt 0:04:00]} 10. e3 {[%emt 0:00:33]} Bg4 {[%emt 0:04:23]} 11. Qd3 {[%emt 0:17:33]} e4 {[%emt 0:16:06]} 12. Qd2 {[%emt 0:08:59]} Bb4 {[%emt 0:15:57]} 13. Qc1 {[%emt 0:00:55]} Be2 {[%emt 0:04:07]} 14. N1d2 {[%emt 0:00:19]} Bxf1 {[%emt 0:02:13]} 15. Qxf1 {[%emt 0:00:08]} Be7 {[%emt 0:13:21]} 16. Bxf6 {[%emt 0:07:24]} Bxf6 {[%emt 0:00:26]} 17. Nxe4 {[%emt 0:00:28]} dxe3 {[%emt 0:03:21]} 18. Rd1 {[%emt 0:03:51]} exf2+ {[%emt 0:11:47]} 19. Kh1 {[%emt 0:10:18]} Qe7 {[%emt 0:00:06]} 20. Nd6+ {[%emt 0:17:17]} Kf8 {[%emt 0:00:09]} 21. Qxf2 {[%emt 0:01:56]} Rd8 {[%emt 0:01:11]} 22. c5 {[%emt 0:00:39]} Ne5 {[%emt 0:02:44]} 23. Rf1 {[%emt 0:07:35]} Nd3 {[%emt 0:05:08]} 24. Qf5 {[%emt 0:04:42]} Nxc5 {[%emt 0:04:24]} 25. Nxf7 {[%emt 0:09:49]} Kxf7 {[%emt 0:01:46]} 26. Nxc5 {[%emt 0:00:12]} Rhe8 {[%emt 0:02:53]} 27. Bd5+ {[%emt 0:04:36]} Rxd5 {[%emt 0:00:02]} 28. Qxd5+ {[%emt 0:00:05]} Kg6 {[%emt 0:00:06]} 29. Qf5+ {[%emt 0:01:25]} Kf7 {[%emt 0:00:17]} 30. Qd5+ {[%emt 0:00:27]} Kg6 {[%emt 0:00:03]} 31. Qf5+ {[%emt 0:00:40]} Kf7 {[%emt 0:00:06]} 32. Qd5+ {[%emt 0:00:25]} 1/2-1/2

[Event "47th GRE-chT 2019"]
[Site "Patra"]
[Date "2019.07.02"]
[Round "1.26"]
[White "Georgitsi, Antigoni"]
[Black "Tsivelekidou, Evgenia"]
[Result "1/2-1/2"]
[ECO "A20"]
[WhiteElo "1758"]
[BlackElo "1976"]
[Annotator "NA"]
[PlyCount "69"]
[EventDate "2019.07.02"]
[EventCountry "GRE"]
[SourceTitle "playchess.com"]
[Source "ChessBase"]
[SourceQuality "1"]
[TimeControl "5400+30"]

1. c4 {[%emt 0:00:00]} e5 {[%emt 0:01:32]} 2. g3 {[%emt 0:00:00]} h5 {[%emt 0:04:44]} 3. h4 {[%emt 0:00:18]} Nc6 {[%emt 0:01:54]} 4. Nc3 {[%emt 0:01:06]} Bc5 {[%emt 0:07:15]} 5. Ne4 {[%emt 0:03:10]} d6 {[%emt 0:08:16]} 6. Bg2 {[%emt 0:04:35]} Bb6 {[%emt 0:01:35]} 7. d3 {[%emt 0:02:00]} Nge7 {[%emt 0:03:24]} 8. Bg5 {[%emt 0:03:14]} Bg4 {[%emt 0:02:58]} 9. Nf3 {[%emt 0:04:02]} Qd7 {[%emt 0:08:56]} 10. Bf6 {[%emt 0:07:10]} O-O {[%emt 0:28:13]} 11. Qc1 {[%emt 0:12:46]} Qf5 {[%emt 0:10:25]} 12. Bxe7 {[%emt 0:01:01]} Nxe7 {[%emt 0:05:55]} 13. Nh2 {[%emt 0:13:11]} c6 {[%emt 0:03:06]} 14. Nxg4 {[%emt 0:00:40]} hxg4 {[%emt 0:03:44]} 15. b4 {[%emt 0:06:30]} Bd4 {[%emt 0:01:16]} 16. Rb1 {[%emt 0:04:15]} d5 {[%emt 0:00:12]} 17. e3 {[%emt 0:00:52]} Bb6 {[%emt 0:01:30]} 18. Nc5 {[%emt 0:06:10]} Bxc5 {[%emt 0:00:05]} 19. bxc5 {[%emt 0:00:17]} Qxd3 {[%emt 0:01:52]} 20. Rb3 {[%emt 0:01:29]} Qxc4 {[%emt 0:00:00]} 21. Qxc4 {[%emt 0:00:00]} dxc4 {[%emt 0:00:26]} 22. Rxb7 {[%emt 0:01:24]} Nd5 {[%emt 0:01:48]} 23. O-O {[%emt 0:07:40]} Rfb8 {[%emt 0:00:22]} 24. Rfb1 {[%emt 0:02:44]} Rxb7 {[%emt 0:00:06]} 25. Rxb7 {[%emt 0:02:10]} f5 {[%emt 0:01:29]} 26. Bf1 {[%emt 0:00:27]} c3 {[%emt 0:00:58]} 27. Rb1 {[%emt 0:05:21]} Kf7 {[%emt 0:00:39]} 28. Bc4 {[%emt 0:02:18]} Ke6 {[%emt 0:00:27]} 29. Rc1 {[%emt 0:00:47]} Rb8 {[%emt 0:00:12]} 30. Rxc3 {[%emt 0:02:47]} Rb4 {[%emt 0:00:47]} 31. Bb3 {[%emt 0:01:20]} a5 {[%emt 0:00:40]} 32. Rc4 {[%emt 0:03:15]} Rb5 {[%emt 0:00:31]} 33. Kf1 {[%emt 0:01:41]} e4 {[%emt 0:00:30]} 34. Ke2 {[%emt 0:00:43]} Ke5 {[%emt 0:00:34]} 35. Kd2 {[%emt 0:01:24]} 1/2-1/2

[Event "47th GRE-chT 2019"]
[Site "Patra"]
[Date "2019.07.02"]
[Round "1.27"]
[White "Mihailidou, Magdalini"]
[Black "Georgitsi, Sofia"]
[Result "0-1"]
[ECO "C54"]
[WhiteElo "1810"]
[BlackElo "1487"]
[Annotator "NA"]
[PlyCount "118"]
[EventDate "2019.07.02"]
[EventCountry "GRE"]
[SourceTitle "playchess.com"]
[Source "ChessBase"]
[SourceQuality "1"]
[TimeControl "5400+30"]

1. e4 {[%emt 0:00:00]} e5 {[%emt 0:01:53]} 2. Nf3 {[%emt 0:00:00]} Nc6 {[%emt 0:00:21]} 3. Bc4 {[%emt 0:00:00]} Bc5 {[%emt 0:00:51]} 4. c3 {[%emt 0:00:12]} Nf6 {[%emt 0:00:46]} 5. d3 {[%emt 0:00:08]} d6 {[%emt 0:00:56]} 6. b4 {[%emt 0:00:08]} Bb6 {[%emt 0:00:53]} 7. a4 {[%emt 0:00:12]} a5 {[%emt 0:00:35]} 8. b5 {[%emt 0:00:33]} Ne7 {[%emt 0:00:57]} 9. O-O {[%emt 0:03:15]} O-O {[%emt 0:01:00]} 10. Nbd2 {[%emt 0:02:37]} Ng6 {[%emt 0:03:19]} 11. h3 {[%emt 0:02:35]} h6 {[%emt 0:02:38]} 12. Re1 {[%emt 0:01:34]} Re8 {[%emt 0:04:47]} 13. Nf1 {[%emt 0:01:25]} c6 {[%emt 0:07:08]} 14. bxc6 {[%emt 0:02:35]} bxc6 {[%emt 0:01:38]} 15. Rb1 {[%emt 0:02:53]} Rb8 {[%emt 0:08:40]} 16. Be3 {[%emt 0:04:39]} Be6 {[%emt 0:09:03]} 17. Bxe6 {[%emt 0:07:49]} fxe6 {[%emt 0:03:43]} 18. Bxb6 {[%emt 0:05:00]} Rxb6 {[%emt 0:00:27]} 19. Ne3 {[%emt 0:00:13]} d5 {[%emt 0:05:21]} 20. exd5 {[%emt 0:01:41]} exd5 {[%emt 0:01:27]} 21. Nf5 {[%emt 0:03:19]} Rxb1 {[%emt 0:09:16]} 22. Qxb1 {[%emt 0:00:08]} Qd7 {[%emt 0:02:10]} 23. Ng3 {[%emt 0:00:56]} Qc7 {[%emt 0:01:47]} 24. Re2 {[%emt 0:07:35]} Rb8 {[%emt 0:06:48]} 25. Qa2 {[%emt 0:10:22]} Kh8 {[%emt 0:04:15]} 26. Re1 {[%emt 0:15:57]} Nd7 {[%emt 0:04:18]} 27. Nf5 {[%emt 0:21:16]} Nc5 {[%emt 0:01:25]} 28. Rd1 {[%emt 0:00:26]} Nf4 {[%emt 0:07:14]} 29. Ne1 {[%emt 0:05:51]} Qf7 {[%emt 0:02:56]} 30. Ne3 {[%emt 0:01:00]} Qg6 {[%emt 0:00:45]} 31. Kh2 {[%emt 0:00:36]} Ncxd3 {[%emt 0:00:45]} 32. Nxd3 {[%emt 0:00:31]} Nxd3 {[%emt 0:00:13]} 33. Qc2 {[%emt 0:00:13]} e4 {[%emt 0:00:34]} 34. Rb1 {[%emt 0:00:46]} Rxb1 {[%emt 0:03:04]} 35. Qxb1 {[%emt 0:00:05]} Nxf2 {[%emt 0:00:47]} 36. Qb8+ {[%emt 0:00:17]} Kh7 {[%emt 0:00:05]} 37. Qc7 {[%emt 0:00:39]} Qg5 {[%emt 0:00:37]} 38. Nc2 {[%emt 0:00:55]} e3 {[%emt 0:03:06]} 39. Qxc6 {[%emt 0:00:37]} Qe5+ {[%emt 0:00:36]} 40. Kg1 {[%emt 0:00:00]} Nxh3+ {[%emt 0:00:00]} 41. gxh3 {[%emt 0:00:00]} Qg3+ {[%emt 0:00:00]} 42. Kh1 {[%emt 0:00:00]} Qxh3+ {[%emt 0:00:00]} 43. Kg1 {[%emt 0:00:00]} Qg3+ {[%emt 0:00:00]} 44. Kh1 {[%emt 0:00:00]} Qf3+ {[%emt 0:00:00]} 45. Kg1 {[%emt 0:00:00]} Qf2+ {[%emt 0:00:00]} 46. Kh1 {[%emt 0:00:00]} Qxc2 {[%emt 0:00:00]} 47. Qxd5 {[%emt 0:00:00]} e2 {[%emt 0:00:00]} 48. Qe5 {[%emt 0:00:00]} Qd1+ {[%emt 0:00:00]} 49. Kg2 {[%emt 0:00:00]} e1=Q {[%emt 0:00:00]} 50. Qf5+ {[%emt 0:00:00]} Kg8 {[%emt 0:00:00]} 51. Qc8+ {[%emt 0:00:00]} Kf7 {[%emt 0:00:00]} 52. Qc4+ {[%emt 0:00:00]} Qe6 {[%emt 0:00:00]} 53. Qf4+ {[%emt 0:00:00]} Ke7 {[%emt 0:00:00]} 54. Qc7+ {[%emt 0:00:00]} Qdd7 {[%emt 0:00:00]} 55. Qc5+ {[%emt 0:00:00]} Qed6 {[%emt 0:00:00]} 56. Qe3+ {[%emt 0:00:00]} Kf8 {[%emt 0:00:00]} 57. Qf3+ {[%emt 0:00:00]} Kg8 {[%emt 0:00:00]} 58. Qa8+ {[%emt 0:00:00]} Kh7 {[%emt 0:00:00]} 59. Qe4+ {[%emt 0:00:00]} Qg6+ {[%emt 0:00:00]} 0-1

[Event "47th GRE-chT 2019"]
[Site "Patra"]
[Date "2019.07.02"]
[Round "1.28"]
[White "Korniotis, Filippos"]
[Black "Zisiadis, Dimitrios"]
[Result "0-1"]
[ECO "E83"]
[WhiteElo "2141"]
[BlackElo "2077"]
[Annotator "NA"]
[PlyCount "84"]
[EventDate "2019.07.02"]
[EventCountry "GRE"]
[SourceTitle "playchess.com"]
[Source "ChessBase"]
[SourceQuality "1"]
[TimeControl "5400+30"]

1. d4 {[%emt 0:00:00]} Nf6 {[%emt 0:00:00]} 2. c4 {[%emt 0:00:00]} g6 {[%emt 0:00:00]} 3. Nc3 {[%emt 0:00:00]} Bg7 {[%emt 0:00:00]} 4. e4 {[%emt 0:00:00]} d6 {[%emt 0:00:00]} 5. f3 {[%emt 0:00:00]} O-O {[%emt 0:00:00]} 6. Be3 {[%emt 0:00:44]} Nc6 {[%emt 0:00:00]} 7. Nge2 {[%emt 0:00:14]} a6 {[%emt 0:00:00]} 8. Qd2 {[%emt 0:13:16]} e6 {[%emt 0:07:04]} 9. g3 {[%emt 0:06:48]} Bd7 {[%emt 0:01:45]} 10. Rc1 {[%emt 0:08:23]} Rb8 {[%emt 0:00:09]} 11. Nd1 {[%emt 0:08:30]} b5 {[%emt 0:00:06]} 12. c5 {[%emt 0:20:28]} e5 {[%emt 0:04:28]} 13. d5 {[%emt 0:00:48]} Ne7 {[%emt 0:02:16]} 14. Bg2 {[%emt 0:04:16]} Ne8 {[%emt 0:00:55]} 15. O-O {[%emt 0:02:41]} f5 {[%emt 0:02:01]} 16. Nf2 {[%emt 0:09:46]} b4 {[%emt 0:16:33]} 17. Rc4 {[%emt 0:01:13]} a5 {[%emt 0:07:49]} 18. Ra1 {[%emt 0:02:18]} Bb5 {[%emt 0:00:20]} 19. Rcc1 {[%emt 0:08:51]} f4 {[%emt 0:02:37]} 20. gxf4 {[%emt 0:00:29]} Bxe2 {[%emt 0:00:03]} 21. cxd6 {[%emt 0:02:33]} cxd6 {[%emt 0:05:53]} 22. Qxe2 {[%emt 0:00:12]} exf4 {[%emt 0:00:02]} 23. Bd2 {[%emt 0:01:10]} Bxb2 {[%emt 0:00:27]} 24. Nd3 {[%emt 0:01:08]} Bxa1 {[%emt 0:00:01]} 25. Rxa1 {[%emt 0:01:22]} g5 {[%emt 0:00:04]} 26. Bh3 {[%emt 0:03:35]} Ng6 {[%emt 0:01:29]} 27. Bc1 {[%emt 0:01:04]} Ng7 {[%emt 0:00:08]} 28. Bb2 {[%emt 0:02:06]} Qb6+ {[%emt 0:02:00]} 29. Nf2 {[%emt 0:01:22]} h5 {[%emt 0:06:21]} 30. Kh1 {[%emt 0:00:41]} Qe3 {[%emt 0:01:06]} 31. Qc2 {[%emt 0:00:53]} Ne5 {[%emt 0:01:05]} 32. Rg1 {[%emt 0:00:27]} Qxf3+ {[%emt 0:00:02]} 33. Bg2 {[%emt 0:00:15]} Qe3 {[%emt 0:00:48]} 34. Qc7 {[%emt 0:00:42]} Qxf2 {[%emt 0:00:04]} 35. Bxe5 {[%emt 0:00:10]} dxe5 {[%emt 0:00:06]} 36. Qxe5 {[%emt 0:00:56]} f3 {[%emt 0:00:06]} 37. Bf1 {[%emt 0:00:29]} g4 {[%emt 0:00:04]} 38. d6 {[%emt 0:00:29]} Qh4 {[%emt 0:00:48]} 39. d7 {[%emt 0:00:34]} Qf6 {[%emt 0:00:00]} 40. Qd5+ {[%emt 0:00:00]} Kh8 {[%emt 0:00:00]} 41. e5 {[%emt 0:00:00]} Qe6 {[%emt 0:00:00]} 42. Qd2 {[%emt 0:00:00]} Rfd8 {[%emt 0:00:00]} 0-1

[Event "47th GRE-chT 2019"]
[Site "Patra"]
[Date "2019.07.02"]
[Round "1.29"]
[White "Stefanou, Dimitrios"]
[Black "Krallis, Christos"]
[Result "0-1"]
[ECO "E16"]
[WhiteElo "1975"]
[BlackElo "2267"]
[Annotator "NA"]
[PlyCount "66"]
[EventDate "2019.07.02"]
[EventCountry "GRE"]
[SourceTitle "playchess.com"]
[Source "ChessBase"]
[SourceQuality "1"]
[TimeControl "5400+30"]

1. d4 {[%emt 0:00:00]} Nf6 {[%emt 0:00:00]} 2. c4 {[%emt 0:00:00]} e6 {[%emt 0:00:00]} 3. Nf3 {[%emt 0:00:00]} Bb4+ {[%emt 0:00:48]} 4. Nbd2 {[%emt 0:00:24]} b6 {[%emt 0:00:55]} 5. g3 {[%emt 0:02:53]} Bb7 {[%emt 0:02:14]} 6. Bg2 {[%emt 0:00:12]} O-O {[%emt 0:00:34]} 7. O-O {[%emt 0:00:36]} Bxd2 {[%emt 0:02:57]} 8. Qxd2 {[%emt 0:18:04]} d6 {[%emt 0:02:59]} 9. b3 {[%emt 0:01:31]} Nbd7 {[%emt 0:01:19]} 10. Bb2 {[%emt 0:00:10]} Qe7 {[%emt 0:04:02]} 11. Rad1 {[%emt 0:09:46]} Rae8 {[%emt 0:04:39]} 12. Rfe1 {[%emt 0:02:48]} Ne4 {[%emt 0:10:23]} 13. Qc2 {[%emt 0:00:23]} f5 {[%emt 0:01:46]} 14. Nd2 {[%emt 0:14:39]} Ndf6 {[%emt 0:00:48]} 15. e3 {[%emt 0:14:51]} g5 {[%emt 0:04:46]} 16. Ba3 {[%emt 0:08:32]} g4 {[%emt 0:03:16]} 17. c5 {[%emt 0:13:03]} Nxd2 {[%emt 0:05:54]} 18. Bxb7 {[%emt 0:00:42]} Nf3+ {[%emt 0:00:28]} 19. Bxf3 {[%emt 0:00:26]} gxf3 {[%emt 0:00:01]} 20. cxd6 {[%emt 0:00:52]} cxd6 {[%emt 0:00:25]} 21. Rc1 {[%emt 0:01:15]} Qf7 {[%emt 0:04:48]} 22. Qd3 {[%emt 0:00:41]} Ne4 {[%emt 0:01:09]} 23. Red1 {[%emt 0:03:00]} Qh5 {[%emt 0:01:04]} 24. Qf1 {[%emt 0:00:43]} Rf6 {[%emt 0:00:41]} 25. h4 {[%emt 0:01:56]} Qg4 {[%emt 0:03:08]} 26. Kh2 {[%emt 0:01:27]} Rh6 {[%emt 0:06:11]} 27. Rc2 {[%emt 0:01:26]} Kh8 {[%emt 0:03:17]} 28. Qh3 {[%emt 0:00:39]} Qh5 {[%emt 0:00:01]} 29. Rh1 {[%emt 0:02:09]} Rg8 {[%emt 0:02:04]} 30. Kg1 {[%emt 0:00:12]} Rhg6 {[%emt 0:00:28]} 31. Kf1 {[%emt 0:00:37]} f4 {[%emt 0:01:31]} 32. exf4 {[%emt 0:01:02]} Qb5+ {[%emt 0:00:33]} 33. Ke1 {[%emt 0:00:21]} Qa5+ {[%emt 0:00:05]} 0-1

[Event "47th GRE-chT 2019"]
[Site "Patra"]
[Date "2019.07.02"]
[Round "1.30"]
[White "Yannopapas, Leontios"]
[Black "Dristellas, Neoklis"]
[Result "1/2-1/2"]
[ECO "A45"]
[WhiteElo "1451"]
[BlackElo "1570"]
[Annotator "NA RC"]
[PlyCount "120"]
[EventDate "2019.07.02"]
[EventCountry "GRE"]
[SourceTitle "playchess.com"]
[Source "ChessBase"]
[SourceQuality "1"]
[TimeControl "5400+30"]

1. d4 {[%emt 0:00:00]} Nf6 {[%emt 0:00:00]} 2. Nc3 {[%emt 0:02:58]} d5 {[%emt 0:00:00]} 3. Bf4 {[%emt 0:01:28]} g6 {[%emt 0:01:26]} 4. Qd2 {[%emt 0:00:56]} Bg7 {[%emt 0:01:20]} 5. O-O-O {[%emt 0:01:14]} O-O {[%emt 0:00:44]} 6. Bh6 {[%emt 0:06:15]} b6 {[%emt 0:07:00]} 7. f3 {[%emt 0:01:33]} Bb7 {[%emt 0:01:33]} 8. h4 {[%emt 0:13:42]} Nh5 {[%emt 0:15:20]} 9. g4 {[%emt 0:02:03]} Ng3 {[%emt 0:05:37]} 10. Rh3 {[%emt 0:01:44]} Nxf1 {[%emt 0:00:15]} 11. Rxf1 {[%emt 0:08:19]} f6 {[%emt 0:03:59]} 12. Bxg7 {[%emt 0:01:03]} Kxg7 {[%emt 0:08:37]} 13. h5 {[%emt 0:08:25]} g5 {[%emt 0:02:57]} 14. h6+ {[%emt 0:01:13]} Kh8 {[%emt 0:03:25]} 15. f4 {[%emt 0:03:26]} Rg8 {[%emt 0:06:24]} 16. fxg5 {[%emt 0:00:44]} Rxg5 {[%emt 0:01:33]} 17. Qf4 {[%emt 0:05:33]} Nd7 {[%emt 0:05:32]} 18. Nf3 {[%emt 0:03:12]} Rg6 {[%emt 0:06:23]} 19. Rh5 {[%emt 0:06:04]} c5 {[%emt 0:09:51]} 20. Nb5 {[%emt 0:03:40]} a6 {[%emt 0:01:47]} 21. Nc7 {[%emt 0:02:40]} e5 {[%emt 0:04:10]} 22. dxe5 {[%emt 0:00:26]} Qxc7 {[%emt 0:01:58]} 23. Nh4 {[%emt 0:05:22]} Rgg8 {[%emt 0:02:07]} 24. exf6 {[%emt 0:01:43]} Qxf4+ {[%emt 0:00:28]} 25. Rxf4 {[%emt 0:05:14]} Raf8 {[%emt 0:00:55]} 26. f7 {[%emt 0:01:01]} Rg6 {[%emt 0:00:45]} 27. Nxg6+ {[%emt 0:00:11]} hxg6 {[%emt 0:01:33]} 28. Rh1 {[%emt 0:01:17]} Ne5 {[%emt 0:01:25]} 29. Rhf1 {[%emt 0:02:09]} Bc8 {[%emt 0:01:29]} 30. g5 {[%emt 0:03:41]} Kh7 {[%emt 0:02:55]} 31. Rf6 {[%emt 0:01:17]} b5 {[%emt 0:03:15]} 32. Rd6 {[%emt 0:02:51]} Bh3 {[%emt 0:00:42]} 33. Rf2 {[%emt 0:02:02]} Bf5 {[%emt 0:00:26]} 34. Rxd5 {[%emt 0:01:22]} Ng4 {[%emt 0:00:35]} 35. Rf4 {[%emt 0:00:44]} Rxf7 {[%emt 0:00:23]} 36. Rxc5 {[%emt 0:00:28]} Ne3 {[%emt 0:00:34]} 37. Rc6 {[%emt 0:00:51]} Rd7 {[%emt 0:00:17]} 38. b3 {[%emt 0:00:34]} Rd1+ {[%emt 0:00:07]} 39. Kb2 {[%emt 0:00:15]} Nd5 {[%emt 0:00:00]} 40. Rd6 {[%emt 0:00:00]} Rd2 {[%emt 0:00:00]} 41. e4 {[%emt 0:00:00]} Nxf4 {[%emt 0:00:00]} 42. Rxd2 {[%emt 0:00:00]} Bg4 {[%emt 0:00:00]} 43. Rf2 {[%emt 0:00:00]} Ne6 {[%emt 0:00:00]} 44. e5 {[%emt 0:00:00]} Bf5 {[%emt 0:00:00]} 45. Rg2 {[%emt 0:00:00]} Nd4 {[%emt 0:00:00]} 46. c4 {[%emt 0:00:00]} Nf3 {[%emt 0:00:00]} 47. Rg3 {[%emt 0:00:00]} Nxe5 {[%emt 0:00:00]} 48. Kc3 {[%emt 0:00:00]} Nc6 {[%emt 0:00:00]} 49. Re3 {[%emt 0:00:00]} b4+ {[%emt 0:00:00]} 50. Kd2 {[%emt 0:00:00]} Nd4 {[%emt 0:00:33]} 51. Re7+ {[%emt 0:00:00]} Kh8 {[%emt 0:02:20]} 52. Ke3 {[%emt 0:00:00]} Nc2+ {[%emt 0:01:17]} 53. Kf4 {[%emt 0:00:00]} Nd4 {[%emt 0:01:54]} 54. c5 {[%emt 0:00:00]} Bb1 {[%emt 0:00:53]} 55. Re8+ {[%emt 0:00:00]} Kh7 {[%emt 0:00:31]} 56. Re7+ {[%emt 0:00:00]} Kh8 {[%emt 0:00:30]} 57. Re8+ {[%emt 0:00:00]} Kh7 {[%emt 0:00:09]} 58. Re7+ {[%emt 0:00:00]} Kh8 {[%emt 0:00:35]} 59. Re8+ {[%emt 0:00:00]} Kh7 {[%emt 0:00:38]} 60. Ke5 {[%emt 4:31:51]} Nc6+ {[%emt 0:00:10] Re7+} 1/2-1/2